[Event "30th Cracovia Festival-B 2019"]
[Site "Krakow"]
[Date "2020.01.03"]
[Round "8.28"]
[White "Gondzik, Dawid"]
[Black "Golenia, Wojciech"]
[Result "1-0"]
[ECO "A43"]
[WhiteElo "2045"]
[BlackElo "2093"]
[Annotator "NA"]
[PlyCount "79"]
[EventDate "2019.12.27"]
[EventCountry "POL"]
[SourceTitle "playchess.com"]
[Source "ChessBase"]
[SourceQuality "1"]
[TimeControl "40/5400+30:1800+30"]

1. d4 {[%emt 0:00:00]} c5 {[%emt 0:00:00]} 2. d5 {[%emt 0:00:58]} Nf6 {[%emt 0:00:00]} 3. Nc3 {[%emt 0:02:17]} g6 {[%emt 0:01:50]} 4. e4 {[%emt 0:01:12]} d6 {[%emt 0:00:10]} 5. f4 {[%emt 0:01:04]} Bg7 {[%emt 0:01:42]} 6. e5 {[%emt 0:02:41]} dxe5 {[%emt 0:02:53]} 7. fxe5 {[%emt 0:00:15]} Ng4 {[%emt 0:16:39]} 8. Bb5+ {[%emt 0:02:41]} Kf8 {[%emt 0:00:20]} 9. e6 {[%emt 0:03:54]} h5 {[%emt 0:05:49]} 10. Nf3 {[%emt 0:10:08]} fxe6 {[%emt 0:10:35]} 11. O-O {[%emt 0:03:50]} Bxc3 {[%emt 0:02:18]} 12. bxc3 {[%emt 0:11:53]} exd5 {[%emt 0:01:47]} 13. Nh4+ {[%emt 0:04:48]} Kg7 {[%emt 0:03:57]} 14. h3 {[%emt 0:08:58]} Nf6 {[%emt 0:25:18]} 15. Qd3 {[%emt 0:04:50]} Ne4 {[%emt 0:00:45]} 16. Bf4 {[%emt 0:05:26]} Rf8 {[%emt 0:02:23]} 17. Be5+ {[%emt 0:12:51]} Kh7 {[%emt 0:00:06]} 18. c4 {[%emt 0:02:12]} Bf5 {[%emt 0:08:23]} 19. Nxf5 {[%emt 0:00:15]} Rxf5 {[%emt 0:00:26]} 20. Rxf5 {[%emt 0:01:15]} gxf5 {[%emt 0:00:01]} 21. Qf3 {[%emt 0:01:13]} Kg6 {[%emt 0:00:13]} 22. cxd5 {[%emt 0:05:25]} Nd7 {[%emt 0:05:36]} 23. Rf1 {[%emt 0:00:58]} Nxe5 {[%emt 0:00:04]} 24. Qxf5+ {[%emt 0:00:08]} Kg7 {[%emt 0:00:19]} 25. Qxe4 {[%emt 0:03:03]} Qd6 {[%emt 0:00:54]} 26. Rf5 {[%emt 0:01:12]} Ng6 {[%emt 0:01:01]} 27. Bd3 {[%emt 0:02:34]} Rf8 {[%emt 0:04:19]} 28. Rg5 {[%emt 0:00:39]} Rf6 {[%emt 0:00:23]} 29. Qh4 {[%emt 0:03:50]} c4 {[%emt 0:01:28]} 30. Qxc4 {[%emt 0:00:45]} Qb6+ {[%emt 0:01:18]} 31. Kh2 {[%emt 0:00:59]} Qf2 {[%emt 0:01:51]} 32. Qe4 {[%emt 0:00:58]} Qb6 {[%emt 0:00:55]} 33. Qxe7+ {[%emt 0:00:28]} Kh6 {[%emt 0:00:10]} 34. Qxf6 {[%emt 0:02:43]} Qxf6 {[%emt 0:00:16]} 35. Rxg6+ {[%emt 0:00:05]} Qxg6 {[%emt 0:00:05]} 36. Bxg6 {[%emt 0:00:03]} Kxg6 {[%emt 0:00:04]} 37. c4 {[%emt 0:00:54]} Kf5 {[%emt 0:00:03]} 38. g4+ {[%emt 0:00:29]} hxg4 {[%emt 0:00:15]} 39. hxg4+ {[%emt 0:00:15]} Ke5 {[%emt 0:00:08]} 40. a4 {[%emt 0:00:00] Kxd5} 1-0

[Event "30th Cracovia Festival-B 2019"]
[Site "Krakow"]
[Date "2020.01.03"]
[Round "8.29"]
[White "Bogdanov, Ignat"]
[Black "Radovic, Stefan"]
[Result "0-1"]
[ECO "E20"]
[WhiteElo "2082"]
[BlackElo "2007"]
[Annotator "NA"]
[PlyCount "72"]
[EventDate "2019.12.27"]
[EventCountry "POL"]
[SourceTitle "playchess.com"]
[Source "ChessBase"]
[SourceQuality "1"]
[TimeControl "40/5400+30:1800+30"]

1. d4 {[%emt 0:00:00]} Nf6 {[%emt 0:00:12]} 2. c4 {[%emt 0:00:00]} e6 {[%emt 0:00:32]} 3. Nc3 {[%emt 0:01:14]} Bb4 {[%emt 0:00:35]} 4. f3 {[%emt 0:00:13]} c5 {[%emt 0:00:47]} 5. d5 {[%emt 0:00:18]} b5 {[%emt 0:03:02]} 6. e4 {[%emt 0:00:22]} d6 {[%emt 0:01:33]} 7. Bd3 {[%emt 0:04:26]} bxc4 {[%emt 0:20:58]} 8. Bxc4 {[%emt 0:00:38]} e5 {[%emt 0:03:50]} 9. Nge2 {[%emt 0:01:48]} Nh5 {[%emt 0:05:04]} 10. h4 {[%emt 0:09:54]} Nd7 {[%emt 0:08:06]} 11. g4 {[%emt 0:03:31]} Nf4 {[%emt 0:00:28]} 12. Nxf4 {[%emt 0:02:46]} exf4 {[%emt 0:00:05]} 13. Bxf4 {[%emt 0:01:55]} Qf6 {[%emt 0:06:30]} 14. Qd2 {[%emt 0:01:04]} Ne5 {[%emt 0:03:36]} 15. Be2 {[%emt 0:05:52]} Qe7 {[%emt 0:11:27]} 16. g5 {[%emt 0:18:52]} Rb8 {[%emt 0:06:36]} 17. Rg1 {[%emt 0:07:06]} Bd7 {[%emt 0:00:38]} 18. Be3 {[%emt 0:03:38]} Bb5 {[%emt 0:00:47]} 19. Kf2 {[%emt 0:05:24]} Bxe2 {[%emt 0:01:23]} 20. Kxe2 {[%emt 0:01:49]} Nc4 {[%emt 0:03:58]} 21. Qc1 {[%emt 0:00:24]} Nxe3 {[%emt 0:10:09]} 22. Qxe3 {[%emt 0:00:40]} O-O {[%emt 0:01:54]} 23. Rg2 {[%emt 0:01:18]} c4 {[%emt 0:01:15]} 24. Rf1 {[%emt 0:05:53]} Rb6 {[%emt 0:01:46]} 25. Kd1 {[%emt 0:02:58]} Rfb8 {[%emt 0:00:36]} 26. Qc1 {[%emt 0:01:53]} Qe5 {[%emt 0:02:52]} 27. Rff2 {[%emt 0:04:53]} Bc5 {[%emt 0:03:01]} 28. Re2 {[%emt 0:00:09]} Bb4 {[%emt 0:00:53]} 29. Rd2 {[%emt 0:04:10]} Qf4 {[%emt 0:00:20]} 30. Ke2 {[%emt 0:00:41]} Qxh4 {[%emt 0:00:17]} 31. a3 {[%emt 0:02:11]} Ba5 {[%emt 0:00:40]} 32. Qg1 {[%emt 0:03:41]} Rxb2 {[%emt 0:00:31]} 33. Qxa7 {[%emt 0:01:41]} Bxc3 {[%emt 0:00:59]} 34. Rxb2 {[%emt 0:00:01]} Rxb2+ {[%emt 0:00:10]} 35. Ke3 {[%emt 0:00:05]} Qe1+ {[%emt 0:00:18]} 36. Kf4 {[%emt 0:00:08]} Be5+ {[%emt 0:00:26]} 0-1

[Event "30th Cracovia Festival-B 2019"]
[Site "Krakow"]
[Date "2020.01.03"]
[Round "8.30"]
[White "Jablonska, Sabina"]
[Black "Janus, Przemyslaw"]
[Result "0-1"]
[ECO "D00"]
[WhiteElo "1933"]
[BlackElo "2065"]
[Annotator "NA"]
[PlyCount "144"]
[EventDate "2019.12.27"]
[EventCountry "POL"]
[SourceTitle "playchess.com"]
[Source "ChessBase"]
[SourceQuality "1"]
[TimeControl "40/5400+30:1800+30"]

1. d4 {[%emt 0:00:00]} d5 {[%emt 0:00:00]} 2. Bf4 {[%emt 0:00:00]} Nf6 {[%emt 0:00:52]} 3. e3 {[%emt 0:00:08]} e6 {[%emt 0:01:05]} 4. c3 {[%emt 0:00:16]} Bd6 {[%emt 0:00:46]} 5. Bg3 {[%emt 0:00:17]} O-O {[%emt 0:01:07]} 6. Nf3 {[%emt 0:00:53]} b6 {[%emt 0:04:49]} 7. Nbd2 {[%emt 0:07:22]} c5 {[%emt 0:04:11]} 8. Bd3 {[%emt 0:06:38]} Ba6 {[%emt 0:04:56]} 9. Bc2 {[%emt 0:16:49]} Bb7 {[%emt 0:11:53]} 10. Qb1 {[%emt 0:09:41]} Qc7 {[%emt 0:10:28]} 11. Ne5 {[%emt 0:14:21]} Nc6 {[%emt 0:05:24]} 12. Nxc6 {[%emt 0:05:44]} Qxc6 {[%emt 0:01:21]} 13. Bh4 {[%emt 0:01:06]} Ne4 {[%emt 0:09:09]} 14. f3 {[%emt 0:10:58]} Nxd2 {[%emt 0:01:03]} 15. Bxh7+ {[%emt 0:01:06]} Kh8 {[%emt 0:00:04]} 16. Kxd2 {[%emt 0:00:06]} cxd4 {[%emt 0:01:08]} 17. cxd4 {[%emt 0:04:25]} e5 {[%emt 0:07:24]} 18. Bd3 {[%emt 0:11:49]} exd4 {[%emt 0:01:06]} 19. Bg5 {[%emt 0:03:08]} dxe3+ {[%emt 0:01:48]} 20. Bxe3 {[%emt 0:00:06]} Rfe8 {[%emt 0:00:18]} 21. Qg1 {[%emt 0:03:37]} Qa4 {[%emt 0:02:54]} 22. Bc2 {[%emt 0:01:35]} Qb4+ {[%emt 0:00:30]} 23. Kd1 {[%emt 0:00:34]} d4 {[%emt 0:02:48]} 24. Bd2 {[%emt 0:00:30]} Qc5 {[%emt 0:08:01]} 25. Qf2 {[%emt 0:00:24]} Be7 {[%emt 0:00:38]} 26. Rc1 {[%emt 0:00:23]} d3 {[%emt 0:04:14]} 27. Qxc5 {[%emt 0:00:11]} Bxc5 {[%emt 0:00:01]} 28. Bxd3 {[%emt 0:00:44]} Rad8 {[%emt 0:00:05]} 29. Bb5 {[%emt 0:00:50]} Re5 {[%emt 0:00:13]} 30. Rc2 {[%emt 0:00:43]} Be3 {[%emt 0:03:52]} 31. Bc4 {[%emt 0:00:14]} Rc5 {[%emt 0:00:51]} 32. b3 {[%emt 0:00:42]} b5 {[%emt 0:00:10]} 33. Re1 {[%emt 0:00:34]} Bxd2 {[%emt 0:00:36]} 34. Rxd2 {[%emt 0:00:21]} Rxd2+ {[%emt 0:00:06]} 35. Kxd2 {[%emt 0:00:04]} bxc4 {[%emt 0:00:05]} 36. bxc4 {[%emt 0:00:18]} Rxc4 {[%emt 0:00:50]} 37. Re7 {[%emt 0:00:06]} Bd5 {[%emt 0:00:13]} 38. Rxa7 {[%emt 0:00:14]} Rb4 {[%emt 0:00:21]} 39. Kc3 {[%emt 0:00:14]} Rb1 {[%emt 0:00:18]} 40. Kd4 {[%emt 0:00:00]} Be6 {[%emt 0:00:00]} 41. a4 {[%emt 0:04:27]} Rb2 {[%emt 0:00:27]} 42. g4 {[%emt 0:00:26]} Rxh2 {[%emt 0:00:10]} 43. a5 {[%emt 0:00:36]} Kh7 {[%emt 0:00:31]} 44. Ke5 {[%emt 0:00:54]} Rf2 {[%emt 0:00:54]} 45. Ke4 {[%emt 0:01:47]} Re2+ {[%emt 0:00:29]} 46. Kf4 {[%emt 0:01:32]} Ra2 {[%emt 0:00:09]} 47. Kg5 {[%emt 0:07:40]} Ra4 {[%emt 0:01:04]} 48. a6 {[%emt 0:03:50]} f6+ {[%emt 0:01:04]} 49. Kh4 {[%emt 0:06:33]} Bd5 {[%emt 0:00:11]} 50. f4 {[%emt 0:01:40]} Rxf4 {[%emt 0:00:12]} 51. Rc7 {[%emt 0:01:05]} Ra4 {[%emt 0:00:45]} 52. a7 {[%emt 0:00:11]} Bf3 {[%emt 0:00:58]} 53. Kg3 {[%emt 0:00:30]} Bxg4 {[%emt 0:00:09]} 54. Rc4 {[%emt 0:01:29]} Rxa7 {[%emt 0:00:20]} 55. Kxg4 {[%emt 0:00:04]} Kg6 {[%emt 0:00:11]} 56. Rb4 {[%emt 0:00:06]} Ra1 {[%emt 0:00:07]} 57. Rc4 {[%emt 0:00:11]} Rg1+ {[%emt 0:00:06]} 58. Kf4 {[%emt 0:00:15]} Kh5 {[%emt 0:00:25]} 59. Rc8 {[%emt 0:00:46]} g5+ {[%emt 0:00:41]} 60. Kf3 {[%emt 0:00:04]} Ra1 {[%emt 0:00:24]} 61. Rc4 {[%emt 0:01:15]} f5 {[%emt 0:00:25]} 62. Rc8 {[%emt 0:00:21]} Ra3+ {[%emt 0:00:10]} 63. Kg2 {[%emt 0:00:06]} Kg4 {[%emt 0:00:54]} 64. Rc4+ {[%emt 0:00:05]} f4 {[%emt 0:00:03]} 65. Rc2 {[%emt 0:00:05]} Rh3 {[%emt 0:00:23]} 66. Rc4 {[%emt 0:00:33]} Rg3+ {[%emt 0:00:40]} 67. Kh2 {[%emt 0:01:11]} Re3 {[%emt 0:00:13]} 68. Rc5 {[%emt 0:01:09]} Re2+ {[%emt 0:00:08]} 69. Kg1 {[%emt 0:00:03]} Kh4 {[%emt 0:00:08]} 70. Kf1 {[%emt 0:00:09]} Ra2 {[%emt 0:00:05]} 71. Rc4 {[%emt 0:00:28]} Kg3 {[%emt 0:00:15]} 72. Rc5 {[%emt 0:00:21]} Ra1+ {[%emt 0:00:34] Rd5} 0-1

[Event "30th Cracovia Festival-B 2019"]
[Site "Krakow"]
[Date "2020.01.03"]
[Round "8.31"]
[White "Krawczyk, Wojciech"]
[Black "Lozynskyi, Bohdan"]
[Result "1/2-1/2"]
[ECO "D00"]
[WhiteElo "1885"]
[BlackElo "2067"]
[Annotator "NA"]
[PlyCount "98"]
[EventDate "2019.12.27"]
[EventCountry "POL"]
[SourceTitle "playchess.com"]
[Source "ChessBase"]
[SourceQuality "1"]
[TimeControl "40/5400+30:1800+30"]

1. d4 {[%emt 0:00:00]} d5 {[%emt 0:00:00]} 2. Bf4 {[%emt 0:00:00]} Nf6 {[%emt 0:00:00]} 3. e3 {[%emt 0:00:00]} c5 {[%emt 0:00:00]} 4. c3 {[%emt 0:00:07]} Nc6 {[%emt 0:00:00]} 5. Nf3 {[%emt 0:00:09]} Qb6 6. Qb3 {[%emt 0:00:26]} c4 {[%emt 0:00:06]} 7. Qxb6 {[%emt 0:01:22]} axb6 {[%emt 0:00:09]} 8. Nbd2 {[%emt 0:06:53]} b5 {[%emt 0:00:35]} 9. a3 {[%emt 0:04:52]} b4 {[%emt 0:00:17]} 10. cxb4 {[%emt 0:00:14]} Nxb4 {[%emt 0:00:13]} 11. Rc1 {[%emt 0:00:04]} Nc6 {[%emt 0:00:46]} 12. Ne5 {[%emt 0:26:01]} e6 {[%emt 0:11:19]} 13. Be2 {[%emt 0:00:26]} Nd7 {[%emt 0:01:39]} 14. Nxc6 {[%emt 0:13:30]} bxc6 {[%emt 0:00:03]} 15. O-O {[%emt 0:01:40]} Nb6 {[%emt 0:09:18]} 16. Rc2 {[%emt 0:02:52]} Kd7 {[%emt 0:02:37]} 17. Rb1 {[%emt 0:01:50]} Ba6 {[%emt 0:02:12]} 18. b3 {[%emt 0:02:56]} cxb3 {[%emt 0:00:32]} 19. Nxb3 {[%emt 0:07:52]} Bxe2 {[%emt 0:00:27]} 20. Rxe2 {[%emt 0:00:06]} Na4 {[%emt 0:00:35]} 21. Nc5+ {[%emt 0:07:19]} Nxc5 {[%emt 0:12:02]} 22. dxc5 {[%emt 0:00:09]} Ra7 {[%emt 0:00:44]} 23. Reb2 {[%emt 0:00:40]} e5 {[%emt 0:01:04]} 24. Bxe5 {[%emt 0:01:33]} Bxc5 {[%emt 0:00:48]} 25. Bxg7 {[%emt 0:03:36]} Rha8 {[%emt 0:00:37]} 26. Rb7+ {[%emt 0:00:42]} Rxb7 {[%emt 0:00:56]} 27. Rxb7+ {[%emt 0:00:05]} Ke6 {[%emt 0:00:08]} 28. Rc7 {[%emt 0:02:21]} Ra6 {[%emt 0:00:10]} 29. a4 {[%emt 0:00:15]} Bd6 {[%emt 0:00:33]} 30. Rc8 {[%emt 0:00:53]} c5 {[%emt 0:00:50]} 31. g3 {[%emt 0:06:06]} Rxa4 {[%emt 0:00:26]} 32. Rh8 {[%emt 0:02:16]} f6 {[%emt 0:01:36]} 33. Re8+ {[%emt 0:05:11]} Kf7 {[%emt 0:00:37]} 34. Rd8 {[%emt 0:00:11]} Be7 {[%emt 0:03:27]} 35. Rd7 {[%emt 0:00:08]} c4 {[%emt 0:00:12]} 36. Kf1 {[%emt 0:03:47]} Ra1+ {[%emt 0:00:42]} 37. Ke2 {[%emt 0:00:26]} Ra2+ {[%emt 0:00:05]} 38. Ke1 {[%emt 0:00:43]} c3 {[%emt 0:00:14]} 39. Bh6 {[%emt 0:00:36]} Ra1+ {[%emt 0:00:14]} 40. Ke2 {[%emt 0:00:00]} c2 {[%emt 0:00:00]} 41. e4 {[%emt 0:00:33]} c1=Q {[%emt 0:02:19]} 42. Bxc1 {[%emt 0:00:11]} Rxc1 {[%emt 0:00:04]} 43. Rxd5 {[%emt 0:00:08]} Rc2+ {[%emt 0:00:13]} 44. Rd2 {[%emt 0:04:01]} Rxd2+ {[%emt 0:01:12]} 45. Kxd2 {[%emt 0:00:04]} Bc5 {[%emt 0:00:04]} 46. Ke2 {[%emt 0:00:10]} Ke6 {[%emt 0:00:09]} 47. f4 {[%emt 0:00:14]} Bg1 {[%emt 0:01:05]} 48. h3 {[%emt 0:00:25]} h5 {[%emt 0:00:10]} 49. Kf3 {[%emt 0:00:18]} Bb6 {[%emt 0:00:30]} 1/2-1/2